bitfinex/quotes_BTCUSD_20250616
["timestamp","ask_amount","ask_price","bid_price","bid_amount"]
[1750085257556,4.86301708,107670.0,107660.0,0.74439648]
[1750085257788,4.86301708,107670.0,107660.0,0.26727648]
[1750085258842,4.63098213,107670.0,107660.0,0.76277243]
[1750085259475,4.63098213,107670.0,107660.0,0.76273243]
[1750085259955,4.62169501,107670.0,107660.0,0.76273243]
[1750085260169,4.52718332,107670.0,107660.0,1.44114148]
[1750085260389,4.52718332,107670.0,107660.0,1.5572907]
[1750085260614,4.47132332,107670.0,107660.0,1.5572907]
[1750085261066,4.47132332,107670.0,107660.0,1.8972907]
[1750085262192,4.47132332,107670.0,107660.0,1.8970507]
[1750085262418,4.47132332,107670.0,107660.0,1.8950507]
[1750085262620,4.47132332,107670.0,107660.0,1.8980507]
[1750085262833,4.47132332,107670.0,107660.0,1.8960507]
[1750085263272,4.47132332,107670.0,107660.0,1.9010507]
[1750085263715,4.47132332,107670.0,107660.0,1.8980507]
[1750085263926,4.47132332,107670.0,107660.0,1.9020507]
[1750085264136,4.47132332,107670.0,107660.0,1.6930507]
[1750085264358,4.47132332,107670.0,107660.0,1.9018907]
[1750085265473,4.47132332,107670.0,107660.0,2.1018907]
[1750085266116,4.25770869,107670.0,107660.0,2.02891398]
[1750085266568,4.25770869,107670.0,107660.0,2.01991398]
[1750085266790,4.25770869,107670.0,107660.0,2.08111398]
[1750085267019,4.25770869,107670.0,107660.0,0.73931747]
[1750085267231,4.25770869,107670.0,107660.0,1.21543747]
[1750085267898,4.25770869,107670.0,107660.0,0.62307571]
[1750085268125,4.26699563,107670.0,107660.0,1.09843571]
[1750085268333,4.27628275,107670.0,107660.0,1.09843571]
[1750085268546,4.27628283,107670.0,107660.0,0.55067571]
[1750085268753,4.27628275,107670.0,107660.0,0.75839571]
[1750085268966,4.26699563,107670.0,107660.0,0.75839571]
[1750085269190,4.29851144,107670.0,107660.0,0.75839571]
[1750085269498,4.51212731,107670.0,107660.0,0.75378639]
[1750085269716,4.30779937,107670.0,107660.0,0.73043428]
[1750085269924,4.28922496,107670.0,107660.0,0.73043428]
[1750085270145,4.27993802,107670.0,107660.0,1.50632721]
[1750085270368,4.25770869,107670.0,107660.0,1.53772721]
[1750085270803,4.26699563,107670.0,107660.0,0.55787428]
[1750085271003,4.25770869,107670.0,107660.0,0.76547428]
[1750085271219,4.25770869,107670.0,107660.0,0.55787428]
[1750085271442,4.25770869,107670.0,107660.0,0.76543428]
[1750085273636,4.26699555,107670.0,107660.0,0.76543428]
[1750085273864,4.26699555,107670.0,107660.0,0.55787428]
[1750085274081,4.25770869,107670.0,107660.0,0.76527428]
[1750085274305,4.25770869,107670.0,107660.0,0.62655442]
[1750085274524,4.25770869,107670.0,107660.0,0.55787428]
[1750085274753,4.25770869,107670.0,107660.0,0.76511428]
[1750085276100,4.26699555,107670.0,107660.0,0.76511428]
[1750085276314,4.25770869,107670.0,107660.0,0.76511428]
[1750085277926,4.25770869,107670.0,107660.0,0.85691388]
[1750085279029,4.25770869,107670.0,107660.0,1.53532293]
[1750085279908,4.25770869,107670.0,107660.0,1.31315564]
[1750085280131,4.25770869,107670.0,107660.0,1.89532293]
[1750085280771,4.25770869,107670.0,107660.0,1.90986378]
[1750085281210,4.25770869,107670.0,107660.0,2.10986378]
[1750085285226,4.25770869,107670.0,107660.0,2.10386378]
[1750085285651,4.25770869,107670.0,107660.0,2.10686378]
[1750085286069,4.25770869,107670.0,107660.0,2.20168378]
[1750085286284,4.25770869,107670.0,107660.0,2.09686378]
[1750085286500,4.25770869,107670.0,107660.0,1.88962378]
[1750085286716,4.25770869,107670.0,107660.0,2.09882378]
[1750085286927,4.25770869,107670.0,107660.0,2.09582378]
[1750085287142,4.25770869,107670.0,107660.0,1.89462378]
[1750085287346,4.25770869,107670.0,107660.0,2.10074378]
[1750085287775,4.25770869,107670.0,107660.0,2.15074378]
[1750085287998,4.21167928,107670.0,107660.0,2.90473107]
[1750085288220,4.21167928,107670.0,107660.0,1.74039649]
[1750085288435,4.21167928,107670.0,107660.0,2.32256378]
[1750085288647,4.21167928,107670.0,107660.0,2.31856378]
[1750085288886,4.21167928,107670.0,107660.0,2.32356378]
[1750085289093,4.21167928,107670.0,107660.0,2.27356378]
[1750085289310,4.21167928,107670.0,107660.0,2.32356378]
[1750085289526,4.21167928,107670.0,107660.0,2.31856378]
[1750085289749,4.21167928,107670.0,107660.0,1.97162378]
[1750085289984,4.21167928,107670.0,107660.0,2.17766378]
[1750085290193,4.21167928,107670.0,107660.0,2.17066378]
[1750085290407,4.21167928,107670.0,107660.0,2.17366378]
[1750085290911,4.21167928,107670.0,107660.0,2.18066378]
[1750085293263,4.21167928,107670.0,107660.0,1.92462378]
[1750085293476,4.21167928,107670.0,107660.0,2.13038378]
[1750085293909,4.21167928,107670.0,107660.0,2.18038378]
[1750085295171,4.21167928,107670.0,107660.0,1.59821649]
[1750085295380,4.21167928,107670.0,107660.0,2.18038378]
[1750085295598,4.21167928,107670.0,107660.0,2.08462378]
[1750085295813,4.21167928,107670.0,107660.0,1.70805649]
[1750085296022,4.21905928,107680.0,107670.0,0.27651463]
[1750085296254,4.21905928,107680.0,107670.0,1.2156229]
[1750085297177,4.21905928,107680.0,107670.0,0.40600561]
[1750085297394,4.21905928,107680.0,107670.0,0.61148561]
[1750085297617,4.21905928,107680.0,107670.0,1.2671529]
[1750085297828,4.21905928,107680.0,107670.0,1.2721529]
[1750085298349,4.21905928,107680.0,107670.0,1.2651529]
[1750085299590,4.21905928,107680.0,107670.0,0.68298561]
[1750085299826,4.21905928,107680.0,107670.0,1.2601529]
[1750085300069,4.21905928,107680.0,107670.0,1.2691529]
[1750085302859,4.21905928,107680.0,107670.0,0.68338561]
[1750085303069,4.21905928,107680.0,107670.0,1.2701029]
[1750085303513,4.21905928,107680.0,107670.0,1.0846229]
[1750085303748,4.21905928,107680.0,107670.0,1.2886229]
[1750085303982,4.21905928,107680.0,107670.0,1.2840729]
[1750085305101,4.21905928,107680.0,107670.0,1.2886229]
[1750085307084,4.21905928,107680.0,107670.0,1.2530729]
[1750085307537,4.21905928,107680.0,107670.0,1.2211729]
[1750085307992,4.21167928,107680.0,107670.0,1.2211729]
[1750085308222,4.21905928,107680.0,107670.0,1.2211729]
[1750085308443,4.21905928,107680.0,107670.0,1.2011729]
[1750085308656,4.21905928,107680.0,107670.0,0.95900561]
[1750085309836,4.21905928,107680.0,107670.0,0.36301639]
[1750085310043,4.22198928,107680.0,107670.0,0.52285639]
[1750085310261,4.30406135,107680.0,107670.0,0.42661463]
[1750085310480,4.3133476,107680.0,107670.0,0.42661463]
[1750085310695,4.33192054,107680.0,107670.0,0.42661463]
[1750085310909,4.32263394,107680.0,107670.0,0.42661463]
[1750085311128,4.33192045,107680.0,107670.0,0.42661463]
[1750085311339,4.29477527,107680.0,107670.0,0.22261463]
[1750085311557,4.30406144,107680.0,107670.0,0.22261463]
[1750085311812,4.30406144,107680.0,107670.0,0.42661463]
[1750085312057,4.24984769,107680.0,107670.0,0.42661463]
[1750085312751,4.2912342,107680.0,107670.0,0.42661463]
[1750085312972,4.4884979,107680.0,107670.0,0.05316]
[1750085313197,4.51074875,107680.0,107670.0,0.39875276]
[1750085313431,4.51074875,107680.0,107670.0,0.213]
[1750085313663,4.51074875,107680.0,107670.0,0.208]
[1750085313878,4.53845559,107680.0,107670.0,0.04416]
[1750085314088,4.53107559,107680.0,107670.0,0.003]
[1750085314302,4.53107559,107680.0,107670.0,0.04416]
[1750085314536,4.59961051,107680.0,107670.0,0.04416]
[1750085314751,4.4264595,107670.0,107660.0,0.42744]
[1750085314969,4.4293895,107670.0,107660.0,0.4716]
[1750085315400,4.2436364,107670.0,107660.0,0.67594639]
[1750085315642,4.26221046,107670.0,107660.0,0.68523428]
[1750085315855,4.16751928,107670.0,107660.0,0.77419425]
[1750085316092,4.17680622,107670.0,107660.0,0.77519425]
[1750085316305,4.16751928,107670.0,107660.0,0.77519425]
[1750085316948,4.16751928,107670.0,107660.0,0.68623428]
[1750085317399,4.17680614,107670.0,107660.0,0.68623428]
[1750085317620,4.24019792,107670.0,107660.0,0.65837001]
[1750085317837,4.24948547,107670.0,107660.0,0.68623473]
[1750085318058,4.435239,107670.0,107660.0,0.68723473]
[1750085318284,4.41666468,107670.0,107660.0,0.67794692]
[1750085318512,4.41666468,107670.0,107660.0,0.4736]
[1750085318513,4.43068967,107670.0,107660.0,0.4736]
[1750085318762,4.43068967,107670.0,107660.0,0.31376]
[1750085318971,4.52693143,107670.0,107660.0,0.31376]
[1750085319189,4.52693143,107670.0,107660.0,0.4736]
[1750085319650,4.52693143,107670.0,107660.0,0.2696]
[1750085319873,3.9164986,107640.0,107630.0,0.48129205]
[1750085320090,3.9194286,107640.0,107630.0,0.48129205]
[1750085320314,3.92578865,107640.0,107630.0,0.48129205]
[1750085320532,4.11452318,107640.0,107630.0,0.51616157]
[1750085320743,4.16993365,107640.0,107630.0,0.66671083]
[1750085320956,4.16993365,107640.0,107630.0,0.67600166]
[1750085321230,4.17998791,107640.0,107630.0,0.67600166]
[1750085321449,4.17116873,107640.0,107630.0,0.65742179]
[1750085321756,3.90844415,107640.0,107630.0,0.76504333]
[1750085322015,3.89838989,107640.0,107630.0,1.42779184]
[1750085322259,3.89838989,107640.0,107630.0,0.84562455]
[1750085322556,3.89838989,107640.0,107630.0,0.69558492]
[1750085322804,3.89838989,107640.0,107630.0,0.69649811]
[1750085323046,3.89838989,107640.0,107630.0,0.79273987]
[1750085323789,3.89838989,107640.0,107630.0,1.78333716]
[1750085323995,3.89838989,107640.0,107630.0,1.89948638]
[1750085324432,3.89838989,107640.0,107630.0,1.69548638]
[1750085324651,3.89838989,107640.0,107630.0,1.89948638]
[1750085324898,3.89838989,107640.0,107630.0,1.8993997]
[1750085325144,3.89838989,107640.0,107630.0,1.8983997]
[1750085325363,3.89838989,107640.0,107630.0,1.8993997]
[1750085325588,3.89838989,107640.0,107630.0,1.9013997]
[1750085329635,3.89838989,107640.0,107630.0,1.91594055]
[1750085329853,3.89838989,107640.0,107630.0,2.49810784]
[1750085330081,3.89838989,107640.0,107630.0,1.91594055]
[1750085330737,3.89838989,107640.0,107630.0,1.91394055]
[1750085330985,3.89838989,107640.0,107630.0,2.49410784]
[1750085331196,3.89838989,107640.0,107630.0,1.91594055]
[1750085331405,3.89838989,107640.0,107630.0,1.91994055]
[1750085332073,3.89838989,107640.0,107630.0,1.91594055]
[1750085332502,3.39838989,107640.0,107630.0,1.91594055]
[1750085333419,3.39838989,107640.0,107630.0,1.91994055]
[1750085333631,3.39838989,107640.0,107630.0,1.69194055]
[1750085333860,3.39838989,107640.0,107630.0,1.8873197]
[1750085334081,3.39838989,107640.0,107630.0,1.10123241]
[1750085334310,3.39838989,107640.0,107630.0,0.72580241]
[1750085334520,3.39838989,107640.0,107630.0,1.23672241]
[1750085334734,3.39838989,107640.0,107630.0,1.03280241]
[1750085334974,3.39838989,107640.0,107630.0,1.23672241]
[1750085335187,3.39838989,107640.0,107630.0,1.03280241]
[1750085335414,3.39838989,107640.0,107630.0,1.23672241]
[1750085335859,3.39838989,107640.0,107630.0,1.03280241]
[1750085336083,3.39838989,107640.0,107630.0,1.23668241]
[1750085336297,3.39838989,107640.0,107630.0,1.26928241]
[1750085336557,3.39838989,107640.0,107630.0,1.30323241]
[1750085336972,3.39838989,107640.0,107630.0,1.8853997]
[1750085343060,3.39838989,107640.0,107630.0,1.30323241]
[1750085343260,3.39838989,107640.0,107630.0,1.8853997]
[1750085343463,3.39838989,107640.0,107630.0,1.26734241]
[1750085343811,3.39838989,107640.0,107630.0,1.29864241]
[1750085344608,3.39838989,107640.0,107630.0,1.8855897]
[1750085345830,3.39838989,107640.0,107630.0,1.8495097]
[1750085346031,3.39838989,107640.0,107630.0,1.8815097]
[1750085346228,3.39838989,107640.0,107630.0,1.8862897]
[1750085347208,3.39838989,107640.0,107630.0,1.90083055]
[1750085347417,3.21257673,107640.0,107630.0,2.57299784]
[1750085347641,0.00047061,107640.0,107630.0,2.74601641]
[1750085347867,0.00047061,107640.0,107630.0,2.79601641]
[1750085348516,3.21257761,107640.0,107630.0,2.79601641]
[1750085348934,3.21257761,107640.0,107630.0,2.13865055]
[1750085349576,3.21257761,107640.0,107630.0,1.94699055]
[1750085349797,3.21257761,107640.0,107630.0,2.10079055]
[1750085350011,3.21257761,107640.0,107630.0,2.15079055]
[1750085351230,3.21257761,107640.0,107630.0,2.20079055]
[1750085352458,3.21257761,107640.0,107630.0,2.20075055]
[1750085353827,3.21257761,107640.0,107630.0,1.89699055]
[1750085354057,3.21257761,107640.0,107630.0,2.10075055]
[1750085354461,3.21257761,107640.0,107630.0,1.90075055]
[1750085354673,3.21257761,107640.0,107630.0,1.6776697]
[1750085354888,3.21257761,107640.0,107630.0,1.23648241]
[1750085356202,3.21257761,107640.0,107630.0,1.30453241]
[1750085356429,3.21257761,107640.0,107630.0,1.8866997]
[1750085358278,3.21257761,107640.0,107630.0,1.6798697]
[1750085358496,3.21257761,107640.0,107630.0,1.23652241]
[1750085358914,3.21257761,107640.0,107630.0,1.8186897]
[1750085359604,3.21257761,107640.0,107630.0,1.8842697]
[1750085362186,3.21257761,107640.0,107630.0,1.8794897]
[1750085362639,3.21257761,107640.0,107630.0,1.8826397]
[1750085366287,3.21257761,107640.0,107630.0,1.8823597]
[1750085367428,3.21257761,107640.0,107630.0,1.89690055]
[1750085369152,3.21257761,107640.0,107630.0,1.91690055]
[1750085369370,3.21257761,107640.0,107630.0,1.33473326]
[1750085369594,3.21257761,107640.0,107630.0,1.30015241]
[1750085370268,3.21257761,107640.0,107630.0,1.29700241]
[1750085370502,3.21257761,107640.0,107630.0,1.07676241]
[1750085370723,3.21257761,107640.0,107630.0,1.03280241]
[1750085370960,3.21257761,107640.0,107630.0,1.23620241]
[1750085372528,3.21257761,107640.0,107630.0,1.8211797]
[1750085372750,3.21257761,107640.0,107630.0,1.8868797]
[1750085375422,3.21257761,107640.0,107630.0,1.30471241]
[1750085375631,3.21257761,107640.0,107630.0,1.8868797]
[1750085376222,3.21257761,107640.0,107630.0,1.6835197]
[1750085376427,3.21257761,107640.0,107630.0,1.8868797]
[1750085380965,3.21257761,107640.0,107630.0,1.92142055]
[1750085381234,3.21257761,107640.0,107630.0,2.92148784]
[1750085381446,3.1991553,107640.0,107630.0,2.92148784]
[1750085381674,3.11605846,107640.0,107630.0,2.92148784]
[1750085381924,3.07005846,107640.0,107630.0,2.92148784]
[1750085382147,3.03936846,107640.0,107630.0,2.92148784]
[1750085382381,3.03936846,107640.0,107630.0,2.91148784]
[1750085382625,3.03229846,107640.0,107630.0,2.91948784]
[1750085382910,3.02846912,107640.0,107630.0,2.91948784]
[1750085383149,2.98200542,107640.0,107630.0,2.91948784]
[1750085383592,2.98200542,107640.0,107630.0,1.55179326]
[1750085383845,2.98200542,107640.0,107630.0,2.33720055]
[1750085384283,2.98200542,107640.0,107630.0,2.92536784]
[1750085384531,2.98200542,107640.0,107630.0,2.72212784]
[1750085384997,2.98200542,107640.0,107630.0,2.92536784]
[1750085385476,2.98200542,107640.0,107630.0,2.2757697]
[1750085385677,2.98200542,107640.0,107630.0,2.2806997]
[1750085386332,2.98200542,107640.0,107630.0,2.29524055]
[1750085386849,2.98200542,107640.0,107630.0,0.9693759]
[1750085387086,2.98200542,107640.0,107630.0,2.02238319]
[1750085387330,2.98200542,107640.0,107630.0,2.08931319]
[1750085387579,2.98200542,107640.0,107630.0,2.10385404]
[1750085387789,2.98200542,107640.0,107630.0,2.09585404]
[1750085388005,2.98200542,107640.0,107630.0,2.08985404]
[1750085388433,2.98200542,107640.0,107630.0,2.09485404]
[1750085388889,2.98200542,107640.0,107630.0,2.08985404]
[1750085389110,2.95330542,107640.0,107630.0,2.08985404]
[1750085389374,2.95330542,107640.0,107630.0,2.10085404]
[1750085390951,2.95330542,107640.0,107630.0,1.89765404]
[1750085391172,2.95330542,107640.0,107630.0,2.17057404]
[1750085391407,2.95330542,107640.0,107630.0,2.75274133]
[1750085391860,2.95330542,107640.0,107630.0,2.17057404]
[1750085392542,2.95330542,107640.0,107630.0,1.98765404]
[1750085392745,2.95330542,107640.0,107630.0,2.19057404]
[1750085394724,2.95330542,107640.0,107630.0,2.77274133]
[1750085395625,2.95330542,107640.0,107630.0,2.19057404]
[1750085395868,2.95330542,107640.0,107630.0,2.19053404]
[1750085396337,2.95330542,107640.0,107630.0,2.48843404]
[1750085396712,2.95330542,107640.0,107630.0,2.44471404]
[1750085396943,2.95330542,107640.0,107630.0,2.48839404]
[1750085397691,2.95330542,107640.0,107630.0,2.43839404]
[1750085397900,2.95330542,107640.0,107630.0,2.39839404]
[1750085398123,2.95330542,107640.0,107630.0,2.12862404]
[1750085398376,2.95330542,107640.0,107630.0,2.33146404]
[1750085398849,2.95330542,107640.0,107630.0,2.36461404]
[1750085399081,2.95330542,107640.0,107630.0,2.39741404]
[1750085400513,2.95330542,107640.0,107630.0,1.59017675]
[1750085400760,2.95623542,107640.0,107630.0,1.0356359]
[1750085400990,3.01883542,107640.0,107630.0,0.80066668]
[1750085401429,3.02812495,107640.0,107630.0,0.80066668]
[1750085401654,3.04670445,107640.0,107630.0,0.32093603]
[1750085401881,3.04670445,107640.0,107630.0,0.79562651]
[1750085402120,3.14285367,107640.0,107630.0,0.49714179]
[1750085402334,3.03741492,107640.0,107630.0,0.4627127]
[1750085402551,3.03741492,107640.0,107630.0,0.6695127]
[1750085402787,3.01883542,107640.0,107630.0,0.66022179]
[1750085403025,3.01883542,107640.0,107630.0,0.31532]
[1750085403267,3.01883542,107640.0,107630.0,0.6655127]
[1750085403462,3.01883542,107640.0,107630.0,0.6870941]
[1750085403977,3.01883542,107640.0,107630.0,0.57973313]
[1750085404210,3.01883542,107640.0,107630.0,0.67597489]
[1750085404446,3.01883542,107640.0,107630.0,0.79062634]
[1750085406077,3.01883542,107640.0,107630.0,0.4714]
[1750085406345,3.01883542,107640.0,107630.0,0.66651287]
[1750085406627,3.01883542,107640.0,107630.0,0.49158509]
[1750085406822,3.01883542,107640.0,107630.0,0.76305359]
[1750085407080,3.01883542,107640.0,107630.0,0.69438509]
[1750085408999,3.01883542,107640.0,107630.0,0.49158509]
[1750085409217,3.01883542,107640.0,107630.0,0.4714]
[1750085409446,3.01883542,107640.0,107630.0,0.66651279]
[1750085409855,3.01883542,107640.0,107630.0,0.68509436]
[1750085410125,3.01883542,107640.0,107630.0,0.69438484]
[1750085410347,3.11498464,107640.0,107630.0,0.69438501]
[1750085410558,3.01883542,107640.0,107630.0,0.50087558]
[1750085410783,3.01883542,107640.0,107630.0,0.69438458]
[1750085411008,3.01883542,107640.0,107630.0,0.69438449]
[1750085411758,3.01883542,107640.0,107630.0,0.4714]
[1750085411759,3.20463995,107640.0,107630.0,0.4714]
[1750085411977,3.39703093,107640.0,107630.0,0.2686]
[1750085412189,3.73703093,107640.0,107630.0,0.31236]
[1750085412396,3.76494693,107640.0,107630.0,0.47136]
[1750085412826,3.76494693,107640.0,107630.0,0.2686]
[1750085413046,3.76494693,107640.0,107630.0,0.47136]
[1750085413462,3.66879771,107640.0,107630.0,0.47136]
[1750085416182,3.66879771,107640.0,107630.0,0.65718179]
[1750085416389,3.66879771,107640.0,107630.0,0.47136]
[1750085417922,3.66879771,107640.0,107630.0,0.66647279]
[1750085418876,3.66879771,107640.0,107630.0,0.6757637]
[1750085419090,3.66879771,107640.0,107630.0,0.66647279]
[1750085420262,3.42494693,107640.0,107630.0,0.31236]
[1750085420469,3.42494693,107640.0,107630.0,0.47132]
[1750085420704,3.68494693,107640.0,107630.0,0.47132]
[1750085421336,3.68494693,107640.0,107630.0,0.66643279]
[1750085421543,3.68494693,107640.0,107630.0,0.45442179]
[1750085421754,3.68494693,107640.0,107630.0,0.47112]
[1750085421964,3.68494693,107640.0,107630.0,0.2686]
[1750085422168,3.68494693,107640.0,107630.0,0.47112]
[1750085423811,3.58879771,107640.0,107630.0,0.47112]
[1750085424461,3.6109877,107640.0,107630.0,0.47112]
[1750085424677,3.9509877,107640.0,107630.0,0.47108]
[1750085425588,3.67823146,107640.0,107630.0,0.68477401]
[1750085425802,2.98122142,107640.0,107630.0,0.68477401]
[1750085426011,2.95330542,107640.0,107630.0,0.77369337]
[1750085427099,2.96259495,107640.0,107630.0,0.68477401]
[1750085427310,2.95330542,107640.0,107630.0,0.68477401]
[1750085427970,2.97188439,107640.0,107630.0,0.68477401]
[1750085428217,2.98117409,107640.0,107630.0,0.68477401]
[1750085428425,2.99046397,107640.0,107630.0,0.68477401]
[1750085428653,2.96259486,107640.0,107630.0,0.68477401]
[1750085428876,2.96259486,107640.0,107630.0,0.77747137]
[1750085429385,2.95330542,107640.0,107630.0,0.68477401]
[1750085430103,2.95330542,107640.0,107630.0,1.44799306]
[1750085430576,2.95330542,107640.0,107630.0,0.86582577]
[1750085430811,2.95330542,107640.0,107630.0,0.65983577]
[1750085431054,2.9904644,107640.0,107630.0,0.52597401]
[1750085431277,2.9933944,107640.0,107630.0,0.68485401]
[1750085431502,2.98410435,107640.0,107630.0,0.68485401]
[1750085431751,2.9933944,107640.0,107630.0,0.68485401]
[1750085432211,3.00268454,107640.0,107630.0,0.68485401]
[1750085432436,3.02494387,107640.0,107630.0,0.68485401]
[1750085433467,3.2107484,107640.0,107630.0,0.68485401]
[1750085433911,3.02494387,107640.0,107630.0,0.68485401]
[1750085434139,3.2107484,107640.0,107630.0,0.68485401]
[1750085434368,3.01565373,107640.0,107630.0,0.68485401]
[1750085434805,3.01565356,107640.0,107630.0,0.48241401]
[1750085435058,3.01565356,107640.0,107630.0,0.68481401]
[1750085435561,3.02494361,107640.0,107630.0,0.68481401]
[1750085435791,2.95330542,107640.0,107630.0,0.81381737]
[1750085436042,2.95330542,107640.0,107630.0,0.84501737]
[1750085436939,2.95330542,107640.0,107630.0,1.52342642]
[1750085437165,2.95330542,107640.0,107630.0,0.94125913]
[1750085437615,2.95330542,107640.0,107630.0,0.64687577]
[1750085437830,2.95330542,107640.0,107630.0,0.54601401]
[1750085438074,2.95330542,107640.0,107630.0,0.74837401]
[1750085438733,2.96259504,107640.0,107630.0,0.48241401]
[1750085438941,2.96259495,107640.0,107630.0,0.68477401]
[1750085439372,2.95330542,107640.0,107630.0,0.68477401]
[1750085440048,2.95330542,107640.0,107630.0,0.71687401]
[1750085440267,2.95330542,107640.0,107630.0,0.93906213]
[1750085443367,2.94330542,107640.0,107630.0,1.52122942]
[1750085444277,2.94330542,107640.0,107630.0,1.53577027]
[1750085444495,2.94330542,107640.0,107630.0,1.89577027]
[1750085444713,2.94330542,107640.0,107630.0,1.89477027]
[1750085444937,2.94330542,107640.0,107630.0,1.89677027]
[1750085445610,2.94330542,107640.0,107630.0,1.89477027]
[1750085445849,2.94330542,107640.0,107630.0,1.96977027]
[1750085446064,2.94330542,107640.0,107630.0,1.97177027]
[1750085446286,2.94330542,107640.0,107630.0,1.96977027]
[1750085446501,2.94330542,107640.0,107630.0,2.84983756]
[1750085446720,2.94330542,107640.0,107630.0,2.26767027]
[1750085446950,2.94330542,107640.0,107630.0,2.64747756]
[1750085447167,2.94330542,107640.0,107630.0,2.06531027]
[1750085447367,2.94330542,107640.0,107630.0,2.26759027]
[1750085447543,2.94330542,107640.0,107630.0,2.26755027]
[1750085447789,2.94330542,107640.0,107630.0,2.27355027]
[1750085448457,2.94330542,107640.0,107630.0,2.07131027]
[1750085448666,2.94330542,107640.0,107630.0,2.27355027]
[1750085450286,2.94330542,107640.0,107630.0,2.20896942]
[1750085450502,2.94330542,107640.0,107630.0,2.22351027]
[1750085450730,2.94330542,107640.0,107630.0,2.20896942]
[1750085450997,2.94330542,107640.0,107630.0,0.67397577]
[1750085451232,2.94330542,107640.0,107630.0,0.58857577]
[1750085451233,2.94623542,107640.0,107630.0,0.58857577]
[1750085451448,2.95552486,107640.0,107630.0,0.22469401]
[1750085451666,2.95552486,107640.0,107630.0,0.69453401]
[1750085451891,2.94623542,107640.0,107630.0,0.78426937]
[1750085452578,2.94623542,107640.0,107630.0,0.77326937]
[1750085452801,2.94623542,107640.0,107630.0,0.77726937]
[1750085452802,2.94330542,107640.0,107630.0,0.77726937]
[1750085453039,2.94330542,107640.0,107630.0,1.48827842]
[1750085453254,2.94330542,107640.0,107630.0,1.52554842]
[1750085453679,2.94330542,107640.0,107630.0,0.94338113]
[1750085453924,2.94330542,107640.0,107630.0,0.74134113]
[1750085454149,2.94330542,107640.0,107630.0,0.93587113]
[1750085454577,2.94330542,107640.0,107630.0,0.93687113]
[1750085455005,2.94330542,107640.0,107630.0,0.93987113]
[1750085455222,2.94330542,107640.0,107630.0,0.94334113]
[1750085456164,2.95068542,107650.0,107640.0,0.21367417]
[1750085456434,2.95068542,107650.0,107640.0,0.46202023]
[1750085457551,2.95068542,107650.0,107640.0,0.46402023]
[1750085458248,2.95068542,107650.0,107640.0,0.46602023]
[1750085458489,2.95361542,107650.0,107640.0,0.46602023]
[1750085459410,2.95361542,107650.0,107640.0,0.30742023]
[1750085459642,2.95361542,107650.0,107640.0,0.50938023]
[1750085460126,2.962904,107650.0,107640.0,0.50938023]
[1750085460347,2.97219267,107650.0,107640.0,0.50938023]
[1750085460997,2.97219267,107650.0,107640.0,0.30742023]
[1750085461215,2.962904,107650.0,107640.0,0.30742023]
[1750085461528,2.962904,107650.0,107640.0,0.21781527]
[1750085461722,3.01178177,107650.0,107640.0,0.21781527]
[1750085461935,3.02107096,107650.0,107640.0,0.21781527]
[1750085462146,3.02107061,107650.0,107640.0,0.21781527]
[1750085462360,3.03035971,107650.0,107640.0,0.68741527]
[1750085462573,3.03036032,107650.0,107640.0,0.68741527]
[1750085463009,3.01178203,107650.0,107640.0,0.68741527]
[1750085463226,3.01178212,107650.0,107640.0,0.68741527]
[1750085463680,3.02107131,107650.0,107640.0,0.68741527]
[1750085463894,3.01178203,107650.0,107640.0,0.68741527]
[1750085464081,3.00440203,107650.0,107640.0,0.68741527]
[1750085464333,3.01369122,107650.0,107640.0,0.68741527]
[1750085464559,3.02298049,107650.0,107640.0,0.48549527]
[1750085464781,2.99511302,107650.0,107640.0,0.68737527]
[1750085465503,3.00440212,107650.0,107640.0,0.68737527]
[1750085465964,3.19947858,107650.0,107640.0,0.47620565]
[1750085466182,3.23217858,107650.0,107640.0,0.67808565]
[1750085466399,3.23217858,107650.0,107640.0,0.68737544]
[1750085467298,3.04639131,107650.0,107640.0,0.69666506]
[1750085467755,3.03710212,107650.0,107640.0,0.69666506]
[1750085467977,3.02781302,107650.0,107640.0,0.69666506]
[1750085468425,2.94330542,107650.0,107640.0,0.69666506]
[1750085468651,2.94330542,107650.0,107640.0,1.44548411]
[1750085469579,2.94330542,107650.0,107640.0,1.46548411]
[1750085470018,2.94330542,107650.0,107640.0,1.46544411]
[1750085470237,2.94330542,107650.0,107640.0,0.79286682]
[1750085470456,2.94330542,107650.0,107640.0,0.95812604]
[1750085470947,2.94330542,107650.0,107640.0,0.95331604]
[1750085471228,2.94330542,107650.0,107640.0,0.88901604]
[1750085471478,2.94330542,107650.0,107640.0,0.79286682]
[1750085471729,2.96481293,107650.0,107640.0,0.49478506]
[1750085471937,2.96481293,107650.0,107640.0,0.69658506]
[1750085472160,2.97410186,107650.0,107640.0,0.69658506]
[1750085472379,2.94623542,107650.0,107640.0,0.69658506]
[1750085472601,2.95552409,107650.0,107640.0,0.69658506]
[1750085473065,2.97410185,107650.0,107640.0,0.49478506]
[1750085473282,2.97410177,107650.0,107640.0,0.69658506]
[1750085473495,2.98339087,107650.0,107640.0,0.49478506]
[1750085473704,2.98339078,107650.0,107640.0,0.69658506]
[1750085474172,2.97410177,107650.0,107640.0,0.69658506]
[1750085474925,2.97410177,107650.0,107640.0,0.53818506]
[1750085475149,2.97410177,107650.0,107640.0,0.69658506]
[1750085475814,2.97410185,107650.0,107640.0,0.69658506]
[1750085476037,2.97410185,107650.0,107640.0,0.49478506]
[1750085476272,2.97410168,107650.0,107640.0,0.69654506]
[1750085476516,2.98339061,107650.0,107640.0,0.69654506]
[1750085476751,2.99267971,107650.0,107640.0,0.69654506]
[1750085476984,2.96481284,107650.0,107640.0,0.69654506]
[1750085477482,2.95552409,107650.0,107640.0,0.69654506]
[1750085477904,2.94623542,107650.0,107640.0,0.69654506]
[1750085478420,2.94330542,107650.0,107640.0,0.69654506]
[1750085478632,2.94330542,107650.0,107640.0,1.34590235]
[1750085478844,2.94330542,107650.0,107640.0,1.24038411]
[1750085479089,2.94330542,107650.0,107640.0,1.44210411]
[1750085481091,2.94330542,107650.0,107640.0,0.85684682]
[1750085481525,2.94330542,107650.0,107640.0,0.95608604]
[1750085481741,2.94330542,107650.0,107640.0,1.53825333]
[1750085481968,2.94330542,107650.0,107640.0,2.92252113]
[1750085482188,2.88270542,107650.0,107640.0,2.94252113]
[1750085482408,0.00738,107660.0,107640.0,2.94252113]
[1750085482409,0.00738,107660.0,107650.0,0.2136543]
[1750085482635,0.10309657,107700.0,107690.0,0.21357494]
[1750085482910,2.77056957,107700.0,107690.0,0.47925494]
[1750085483154,2.74267157,107700.0,107690.0,1.16247399]
[1750085483387,2.667473,107710.0,107700.0,0.27775512]
[1750085483607,2.667473,107710.0,107700.0,0.64154434]
[1750085484058,2.667473,107710.0,107700.0,0.64168544]
[1750085484758,2.667473,107710.0,107700.0,0.64368544]
[1750085485420,2.667473,107710.0,107700.0,1.32690449]
[1750085485854,2.667473,107710.0,107700.0,1.32790449]
[1750085486504,2.667473,107710.0,107700.0,1.32490449]
[1750085486763,2.667473,107710.0,107700.0,0.7447372]
[1750085486983,2.667473,107710.0,107700.0,1.33090449]
[1750085487220,2.667473,107710.0,107700.0,1.32490449]